bitfinex/quotes_ETHUSD_20250802
["timestamp","ask_amount","ask_price","bid_price","bid_amount"]
[1754103380696,0.93010001,3526.0,3525.9,0.1436]
[1754103381195,0.93010001,3526.0,3525.9,0.002]
[1754103390005,0.48040001,3526.0,3525.9,0.002]
[1754103391792,0.92540001,3526.0,3525.9,0.002]
[1754103392900,1e-08,3526.0,3525.9,0.002]
[1754103393104,0.45500001,3526.0,3525.9,0.002]
[1754103393878,0.90000001,3526.0,3525.9,0.002]
[1754103395802,1.04160001,3526.0,3525.9,0.002]
[1754103396007,0.59660001,3526.0,3525.9,0.002]
[1754103396179,1e-08,3526.0,3525.9,0.002]
[1754103399027,0.45500001,3526.0,3525.9,0.002]
[1754103399193,0.90000001,3526.0,3525.9,0.002]
[1754103400417,1.04160001,3526.0,3525.9,0.002]
[1754103403098,0.59660001,3526.0,3525.9,0.002]
[1754103403300,1e-08,3526.0,3525.9,0.002]
[1754103403725,0.45500001,3526.0,3525.9,0.002]
[1754103403921,0.90000001,3526.0,3525.9,0.002]
[1754103408843,0.45500001,3526.0,3525.9,0.002]
[1754103409309,1e-08,3526.0,3525.9,0.4618]
[1754103413401,1e-08,3526.0,3525.9,0.002]
[1754103414614,1e-08,3526.0,3525.9,6.87591685]
[1754103414819,1e-08,3526.0,3525.9,8.90747816]
[1754103420742,1e-08,3526.0,3525.9,13.25947816]
[1754103421512,1e-08,3526.1,3526.0,6.38607487]
[1754103421708,1e-08,3526.1,3526.0,6.66736264]
[1754103421948,0.001,3527.1,3526.8,6.38543155]
[1754103422251,1e-08,3527.3,3527.2,3.55]
[1754103422539,0.001,3528.9,3527.4,6.38494925]
[1754103422740,0.001,3528.9,3527.4,6.68754783]
[1754103422912,0.001,3528.9,3528.4,6.38414578]
[1754103423111,0.001,3528.9,3528.4,11.6569854]
[1754103423311,0.001,3528.9,3528.4,12.1163854]
[1754103423531,0.4552,3528.9,3528.4,11.6569854]
[1754103424442,0.4552,3528.9,3528.4,11.8004622]
[1754103424662,0.4552,3528.9,3528.4,11.9420622]
[1754103424860,0.4552,3528.9,3528.4,12.4085622]
[1754103425219,0.001,3528.9,3528.4,9.43093962]
[1754103425531,0.4675,3528.9,3528.4,12.2650854]
[1754103425847,0.9217,3528.9,3528.4,12.47987521]
[1754103426022,0.9217,3528.9,3528.4,9.64572943]
[1754103426023,0.4675,3528.9,3528.4,9.64572943]
[1754103426225,0.4542,3528.8,3528.4,9.64572943]
[1754103426430,0.4542,3528.8,3528.4,12.47987521]
[1754103427867,0.4542,3528.8,3528.4,9.64572943]
[1754103428373,0.4675,3528.9,3528.4,9.64572943]
[1754103428576,0.4552,3528.5,3528.4,9.64572943]
[1754103428784,0.4552,3528.5,3528.4,4.74472943]
[1754103429084,0.9217,3528.5,3528.4,4.4906]
[1754103429831,0.4552,3528.5,3528.4,4.4906]
[1754103430164,0.001,3528.5,3528.4,3.1416]
[1754103430369,0.4552,3528.5,3528.4,3.1416]
[1754103430749,0.9217,3528.5,3528.4,3.1416]
[1754103431069,0.9217,3528.5,3528.4,4.21961714]
[1754103431473,0.9217,3528.5,3528.4,3.1416]
[1754103432238,0.9217,3528.5,3528.4,3.0]
[1754103433067,0.001,3528.5,3528.4,3.0]
[1754103435738,0.001,3528.5,3528.4,5.83414578]
[1754103435941,0.001,3528.5,3528.4,3.6916]
[1754103436138,0.001,3528.5,3528.4,4.32421155]
[1754103436379,0.4552,3528.5,3528.4,4.87421155]
[1754103438800,0.9217,3528.5,3528.4,7.4896]
[1754103439000,0.9217,3528.5,3528.4,3.1416]
[1754103448599,0.4552,3528.5,3528.4,3.1416]
[1754103448804,0.9076,3528.5,3528.4,3.1416]
[1754103450397,0.4552,3528.5,3528.4,3.1416]
[1754103451110,0.9076,3528.5,3528.4,3.1416]
[1754103451282,0.9076,3528.5,3527.2,0.9145]
[1754103451484,0.94057072,3528.4,3527.2,0.4321]
[1754103451686,0.1416,3528.2,3527.3,0.851783]
[1754103451915,0.9121,3528.1,3527.6,0.1416]
[1754103452107,0.02847072,3528.0,3527.6,0.1416]
[1754103452304,0.94057072,3528.0,3527.6,0.1416]
[1754103452493,0.9121,3527.9,3527.6,0.1416]
[1754103452692,0.02847072,3527.8,3527.6,0.1416]
[1754103452897,0.94057072,3527.8,3527.6,0.1416]
[1754103453098,0.94057072,3527.8,3527.2,0.21039754]
[1754103453099,0.9121,3527.7,3526.4,0.9145]
[1754103453296,0.1416,3527.5,3527.0,0.1416]
[1754103453622,0.9121,3527.4,3527.0,0.1416]
[1754103453824,0.4597,3527.4,3527.0,0.1416]
[1754103454422,0.1416,3527.6,3527.0,0.1416]
[1754103454629,0.4597,3527.3,3527.0,0.1416]
[1754103455390,0.9121,3527.2,3527.0,0.1416]
[1754103455588,0.9121,3527.1,3526.2,0.4321]
[1754103455785,0.9121,3527.0,3526.8,0.1416]
[1754103456020,0.9121,3526.9,3526.8,0.1416]
[1754103456520,0.4597,3526.9,3526.8,0.1416]
[1754103456725,0.1416,3527.3,3526.8,0.1416]
[1754103457021,0.594,3527.7,3527.1,0.1416]
[1754103457225,0.4597,3527.3,3527.1,0.1416]
[1754103458290,0.9121,3527.2,3526.4,0.55]
[1754103458495,0.4597,3527.1,3527.0,0.1416]
[1754103458724,0.9121,3527.1,3527.0,0.1416]
[1754103461205,0.9121,3527.1,3526.4,3.0]
[1754103461413,0.4597,3527.0,3526.9,0.1416]
[1754103461610,0.4597,3527.0,3525.9,0.002]
[1754103461914,0.02847072,3526.9,3525.9,0.002]
[1754103462124,0.1416,3526.6,3526.1,0.1416]
[1754103462442,0.9121,3526.5,3526.1,0.1416]
[1754103462736,0.9121,3526.4,3526.1,0.1416]
[1754103463034,0.1416,3526.3,3525.9,0.002]
[1754103463235,0.6013,3526.4,3525.9,0.002]
[1754103463397,0.4597,3526.3,3525.9,0.002]
[1754103463801,0.4597,3526.2,3525.9,0.002]
[1754103464214,0.4597,3526.2,3526.0,0.002]
[1754103466219,0.4524,3526.4,3526.0,0.002]
[1754103466408,0.9121,3526.4,3526.0,0.1436]
[1754103466607,0.4524,3526.4,3526.0,0.1436]
[1754103466934,0.4597,3526.3,3526.0,0.1436]
[1754103467116,0.4524,3526.3,3526.0,0.1436]
[1754103467317,0.4597,3526.2,3526.0,0.1436]
[1754103468508,0.6013,3526.5,3526.0,0.1436]
[1754103468705,0.4597,3526.4,3526.0,0.1436]
[1754103468911,0.9121,3526.4,3526.0,0.1436]
[1754103469112,0.4597,3526.3,3526.0,0.1436]
[1754103469339,0.4597,3526.3,3526.0,0.002]
[1754103469540,0.4524,3526.2,3526.0,0.002]
[1754103469909,0.4597,3526.1,3526.0,0.002]
[1754103470205,0.4597,3526.5,3526.0,0.002]
[1754103470422,0.4597,3526.5,3526.1,0.1416]
[1754103470731,0.4597,3526.4,3526.1,0.1416]
[1754103471137,0.4597,3526.3,3526.1,0.1416]
[1754103471840,0.9208,3526.2,3526.0,0.002]
[1754103472514,0.9208,3526.1,3526.0,0.002]
[1754103472669,1.0624,3526.1,3526.0,0.002]
[1754103480777,1.09087072,3526.1,3526.0,0.002]
[1754103481146,1.0624,3526.1,3526.0,0.002]
[1754103481348,1.09087072,3526.1,3526.0,0.002]
[1754103481561,1.63475779,3526.1,3526.0,0.002]
[1754103482267,1.60628707,3526.1,3526.0,0.002]
[1754103483969,4.99228151,3526.1,3526.0,0.002]
[1754103484244,5.02075223,3526.1,3526.0,0.002]
[1754103485851,2.15628707,3526.1,3526.0,0.002]
[1754103486286,5.95428707,3526.1,3526.0,0.002]
[1754103490893,0.68548707,3526.1,3526.0,0.002]
[1754103491074,4.4896,3526.1,3526.0,0.002]
[1754103492900,0.1416,3526.1,3526.0,0.002]
[1754103493198,0.1416,3526.1,3526.0,0.9591]
[1754103493397,4.4896,3526.1,3526.0,0.9591]
[1754103493598,4.348,3526.1,3526.0,0.9591]
[1754103494902,0.1416,3526.3,3526.0,0.9591]
[1754103495113,0.1416,3526.3,3526.1,0.9571]
[1754103495114,4.348,3526.2,3526.1,0.9571]
[1754103496576,4.347,3526.2,3526.1,0.4734]
[1754103496966,4.347,3526.2,3526.0,0.002]
[1754103497906,0.02847072,3526.1,3526.0,0.002]
[1754103498081,1.51410707,3526.1,3526.0,0.002]
[1754103498894,1.54257779,3526.1,3526.0,0.002]
[1754103499479,1.51410707,3526.1,3526.0,0.002]
[1754103499892,5.86110707,3526.1,3526.0,0.002]
[1754103500467,1.51410707,3526.1,3526.0,0.002]
[1754103500682,5.4094,3526.1,3526.0,0.002]
[1754103503886,5.43787072,3526.1,3526.0,0.002]
[1754103504609,5.4094,3526.1,3526.0,0.002]
[1754103507211,4.9401,3526.1,3526.0,0.002]
[1754103508005,5.3837,3526.1,3526.0,0.002]
[1754103508180,5.92207,3526.1,3526.0,0.002]
[1754103510095,5.47847,3526.1,3526.0,0.002]
[1754103510490,4.4876,3526.1,3526.0,0.002]
[1754103514736,0.1416,3526.1,3526.0,0.002]
[1754103514933,4.4876,3526.1,3526.0,0.002]
[1754103516128,4.9748,3526.1,3526.0,0.002]
[1754103517120,4.4876,3526.1,3526.0,0.002]
[1754103518555,5.98871072,3526.1,3526.0,0.002]
[1754103518720,5.96024,3526.1,3526.0,0.002]
[1754103519043,10.50223444,3526.1,3526.0,0.002]
[1754103519224,13.50223444,3526.1,3526.0,0.002]
[1754103519954,21.07023444,3526.1,3526.0,0.002]
[1754103520949,21.21821868,3526.1,3526.0,0.002]
[1754103523042,16.87221868,3526.1,3526.0,0.002]
[1754103523360,19.36423444,3526.1,3526.0,0.002]
[1754103524068,11.63224,3526.1,3526.0,0.002]
[1754103524217,15.53464,3526.1,3526.0,0.002]
[1754103524861,15.97824,3526.1,3526.0,0.002]
[1754103526510,7.70144,3526.1,3526.0,0.002]
[1754103526745,11.5056,3526.1,3526.0,0.002]
[1754103528050,11.9928,3526.1,3526.0,0.002]
[1754103528816,11.5056,3526.1,3526.0,0.002]
[1754103529434,11.5046,3526.1,3526.0,0.002]
[1754103529751,4.4866,3526.1,3526.0,0.4534]
[1754103530151,4.345,3526.1,3526.0,0.4534]
[1754103530452,4.4866,3526.1,3526.0,0.4534]
[1754103530856,4.4866,3526.1,3526.0,0.002]
[1754103531517,4.93526,3526.1,3526.0,0.002]
[1754103531725,5.84916,3526.1,3526.0,0.002]
[1754103532591,4.4866,3526.1,3526.0,0.002]
[1754103535558,5.4005,3526.1,3526.0,0.002]
[1754103536828,5.42897072,3526.1,3526.0,0.002]
[1754103538059,10.49249444,3526.1,3526.0,0.002]
[1754103538246,13.49249444,3526.1,3526.0,0.002]
[1754103538449,15.12533024,3526.1,3526.0,0.002]
[1754103539544,22.14333024,3526.1,3526.0,0.002]
[1754103540332,16.6099358,3526.1,3526.0,0.002]
[1754103540531,16.1374358,3526.1,3526.0,0.002]
[1754103541061,16.6099358,3526.1,3526.0,0.002]
[1754103541235,13.1374358,3526.1,3526.0,0.002]
[1754103541436,11.5046,3526.1,3526.0,0.002]
[1754103541963,12.4185,3526.1,3526.0,0.002]
[1754103542171,18.25449444,3526.1,3526.0,0.002]
[1754103542462,20.51049444,3526.1,3526.0,0.002]
[1754103542647,20.06909444,3526.1,3526.0,0.002]
[1754103542855,22.58257703,3526.1,3526.0,0.002]
[1754103545334,25.57257703,3526.1,3526.0,0.002]
[1754103545536,22.58257703,3526.1,3526.0,0.002]
[1754103546677,19.74658259,3526.1,3526.0,0.002]
[1754103546878,22.14117703,3526.1,3526.0,0.002]
[1754103547065,22.58257703,3526.1,3526.0,0.002]
[1754103549969,19.74658259,3526.1,3526.0,0.002]
[1754103550171,19.30518259,3526.1,3526.0,0.002]
[1754103550340,16.57668259,3526.1,3526.0,0.002]
[1754103550541,7.1596,3526.1,3526.0,0.002]
[1754103550740,11.5036,3526.1,3526.0,0.9179]
[1754103551074,11.5036,3526.1,3526.0,0.4678]
[1754103551274,11.5036,3526.1,3526.0,0.9179]
[1754103554208,11.5036,3526.1,3526.0,0.4678]
[1754103555704,0.1416,3526.1,3526.0,0.4678]
[1754103555890,0.1416,3526.1,3526.0,0.9179]
[1754103555891,4.4856,3526.1,3526.0,0.9179]
[1754103556201,4.4856,3526.1,3526.0,0.4678]
[1754103556365,4.4856,3526.1,3526.0,0.002]
[1754103557377,4.51407072,3526.1,3526.0,0.002]
[1754103557575,6.16702779,3526.1,3526.0,0.002]
[1754103557785,6.13855707,3526.1,3526.0,0.002]
[1754103557996,4.9581,3526.1,3526.0,0.002]
[1754103558506,4.4856,3526.1,3526.0,0.002]
[1754103559475,4.4856,3526.1,3526.0,0.9179]
[1754103560110,0.1416,3526.1,3526.0,0.9179]
[1754103560387,4.4846,3526.1,3526.0,0.9179]
[1754103560799,4.343,3526.1,3526.0,0.9179]
[1754103560985,4.4846,3526.1,3526.0,0.9179]
[1754103561964,0.1416,3526.1,3526.0,0.4678]
[1754103562217,4.343,3526.1,3526.0,0.9385]
[1754103562925,4.343,3526.6,3526.0,0.9385]
[1754103563121,4.343,3526.6,3526.1,3.9185]
[1754103563324,4.343,3526.6,3526.5,0.1416]
[1754103563652,4.343,3526.6,3526.5,1.0601]
[1754103564050,4.343,3526.8,3526.5,1.0601]
[1754103564440,4.343,3526.8,3526.6,0.9185]
[1754103564635,0.1416,3527.1,3526.7,0.9185]
[1754103564839,0.1416,3527.1,3526.5,0.1416]
[1754103564840,4.343,3527.0,3526.5,0.1416]
[1754103565040,4.343,3527.0,3526.8,0.9185]
[1754103565235,4.343,3527.0,3526.5,0.1416]
[1754103565470,4.343,3527.0,3526.9,0.9185]
[1754103565667,4.342,3527.0,3526.9,0.9185]
[1754103569588,4.342,3527.4,3526.9,3.9185]
[1754103569735,4.342,3527.4,3527.3,0.1416]
[1754103569937,0.001,3527.5,3527.3,1.0601]
[1754103570441,0.001,3527.5,3527.4,0.9185]
[1754103575298,0.001,3527.5,3527.3,0.1416]
[1754103575495,0.001,3527.5,3527.4,0.9185]
[1754103576248,0.001,3527.5,3527.4,1.30802785]
[1754103577971,0.001,3527.5,3527.4,0.9185]
[1754103578151,0.001,3527.5,3527.3,0.1416]
[1754103578366,0.001,3527.5,3527.3,0.5894]
[1754103578576,0.001,3527.5,3527.4,0.9185]
[1754103579876,0.001,3527.5,3527.4,1.4685]
[1754103580081,0.001,3527.5,3527.4,1.62951]
[1754103585292,0.001,3527.5,3527.4,0.16101]
[1754103585489,0.001,3527.5,3527.3,0.1416]
[1754103585990,0.483,3527.5,3527.3,0.1416]
[1754103586352,0.001,3527.5,3527.3,0.1416]
[1754103586556,0.001,3527.5,3527.3,0.5894]
[1754103586773,0.001,3527.5,3527.4,0.4478]
[1754103587010,0.001,3527.5,3527.4,1.12342902]
[1754103587212,0.001,3527.5,3527.4,0.9185]
[1754103587986,0.001,3527.5,3527.4,0.94684949]
[1754103588192,0.001,3527.5,3527.4,3.94684949]
[1754103589211,0.001,3527.5,3527.4,3.78179874]
[1754103590191,0.001,3527.5,3527.4,4.33179874]
[1754103590388,0.001,3527.5,3527.4,8.33430003]
[1754103590982,0.001,3527.5,3527.4,12.67330003]
[1754103591366,0.001,3527.5,3527.4,9.83835078]
[1754103591664,0.001,3527.5,3527.4,12.67330003]
[1754103596687,0.001,3527.5,3527.4,4.58085078]
[1754103596888,0.4994,3527.5,3527.4,7.888]
[1754103597107,0.001,3527.5,3527.4,7.888]
[1754103598387,0.001,3527.5,3527.4,10.72294925]
[1754103599492,0.001,3527.5,3527.4,11.16664925]
[1754103599692,0.001,3527.5,3527.4,11.66564925]
[1754103600336,0.001,3527.5,3527.4,13.27168492]
[1754103600498,0.001,3527.5,3527.4,13.77008492]
[1754103600831,0.001,3527.9,3527.8,6.38462781]
[1754103600979,0.001,3527.9,3527.8,10.72162781]
[1754103601180,0.001,3527.9,3527.8,11.80592781]
[1754103601424,0.001,3527.9,3527.8,13.55348024]
[1754103604194,0.001,3527.9,3527.8,8.27378024]
[1754103604388,0.001,3527.9,3527.8,12.61078024]
[1754103605125,0.001,3527.9,3527.8,13.55348024]
[1754103605306,0.001,3527.9,3527.8,12.61078024]
[1754103605507,0.001,3527.9,3527.8,13.55348024]
[1754103608832,1e-08,3527.9,3527.8,13.55348024]
[1754103609135,1e-08,3527.9,3527.8,14.20503762]
[1754103611337,1e-08,3527.9,3527.8,14.31854662]
[1754103612614,1e-08,3527.9,3527.8,9.63258518]
[1754103612938,1e-08,3527.9,3527.8,13.96858518]
[1754103616000,1e-08,3527.9,3527.8,8.13988518]
[1754103616196,1e-08,3527.9,3527.8,12.61598924]
[1754103616439,1e-08,3527.9,3527.8,13.66498924]
[1754103616939,1e-08,3527.9,3527.8,13.16598924]
[1754103617138,1e-08,3527.9,3527.8,13.66498924]
[1754103617801,1e-08,3527.9,3527.8,13.16598924]
[1754103618001,1e-08,3527.9,3527.8,13.66498924]
[1754103618814,1e-08,3527.9,3527.8,12.72228924]
[1754103620265,0.001,3529.9,3529.7,6.38310196]
[1754103620547,0.14811359,3533.1,3529.9,0.55]
[1754103620720,0.4363,3530.8,3530.7,3.38229954]
[1754103620914,0.4363,3530.8,3530.7,10.75729954]
[1754103621112,0.4984,3530.8,3530.7,10.75729954]
[1754103621338,0.1416,3532.1,3531.0,2.8320589]
[1754103621339,0.4363,3531.1,3531.0,2.8320589]
[1754103621528,0.4363,3531.1,3531.0,7.376]
[1754103621935,0.895,3531.1,3531.0,7.5176]
[1754103623044,0.9113,3531.1,3531.0,8.368516]
[1754103623917,0.9113,3531.1,3531.0,8.918516]
[1754103625413,0.9113,3531.1,3531.0,8.365516]
[1754103625858,0.1416,3531.8,3531.1,0.55]
[1754103626169,0.1416,3532.3,3531.3,3.55]
[1754103626329,0.1416,3532.3,3531.5,3.0]
[1754103626565,0.9113,3532.2,3531.7,0.1416]
[1754103626871,0.9113,3532.1,3531.7,0.1416]
[1754103627164,0.1416,3532.3,3531.7,0.1416]
[1754103627165,0.9113,3532.0,3531.7,0.992429]
[1754103627360,0.02847072,3532.0,3531.7,0.1416]
[1754103627560,0.9113,3531.9,3531.7,0.1416]
[1754103627721,0.02847072,3532.2,3531.5,0.850898]
[1754103627920,0.1416,3531.7,3531.2,0.1416]
[1754103628145,0.9113,3531.6,3531.2,0.1416]
[1754103628352,0.9113,3531.5,3531.1,0.850973]
[1754103628558,0.4526,3531.4,3531.1,0.1416]
[1754103628730,0.9113,3531.4,3531.1,0.1416]
[1754103629130,0.9113,3531.3,3531.1,0.1416]
[1754103629316,0.02847072,3532.1,3530.5,3.0]
[1754103629521,0.9113,3531.2,3530.9,0.1416]
[1754103629722,0.9113,3531.1,3530.9,0.1416]
[1754103630039,0.9113,3531.0,3530.9,0.1416]
[1754103630788,0.91619939,3533.4,3530.9,0.1416]
[1754103631071,0.4587,3531.2,3531.0,0.55]
[1754103631370,0.4587,3531.5,3531.2,0.55]
[1754103631667,0.4587,3531.4,3531.2,0.55]
[1754103631878,0.9113,3531.3,3531.0,0.55]
[1754103632169,0.9113,3531.2,3530.9,3.850976]
[1754103632373,0.9113,3531.1,3530.9,0.850976]
[1754103632671,0.9113,3531.0,3530.4,4.385]
[1754103632876,0.1416,3531.5,3530.9,0.1416]
[1754103633430,0.9113,3531.4,3530.9,0.1416]
[1754103633740,0.9113,3531.3,3530.9,0.1416]
[1754103633940,0.9113,3531.2,3530.9,0.1416]
[1754103634136,0.1416,3531.5,3530.9,0.1416]
[1754103634337,0.9113,3531.1,3530.9,0.1416]
[1754103634650,0.4587,3531.0,3530.9,0.1416]
[1754103635060,0.4587,3531.4,3531.0,0.55]
[1754103635265,0.4587,3531.4,3531.0,1.0042626]
[1754103635451,0.4587,3531.3,3531.0,1.0042626]
[1754103635653,0.4587,3531.3,3531.1,3.0]
[1754103635958,0.4587,3531.3,3531.2,0.1416]
[1754103636968,0.4526,3531.6,3531.2,0.1416]
[1754103636969,0.4587,3531.6,3531.3,0.55]
[1754103637170,0.9113,3531.5,3531.2,0.992501]
[1754103637375,0.9113,3531.4,3531.2,0.850901]
[1754103637563,0.4526,3531.4,3531.3,0.1416]
[1754103638182,0.9113,3531.4,3531.3,0.1416]
[1754103638594,0.4587,3531.4,3531.3,0.1416]
[1754103639097,0.4587,3531.4,3531.3,0.992508]
[1754103640011,0.9113,3531.9,3531.3,0.992508]
[1754103640160,0.4587,3531.7,3531.3,0.850908]
[1754103640569,0.4587,3532.0,3531.6,0.1416]
[1754103640788,0.4587,3531.9,3531.6,0.1416]
[1754103640982,0.4587,3531.9,3531.7,0.02831497]
[1754103641286,0.4587,3531.9,3531.8,0.1416]
[1754103643390,0.9113,3532.2,3531.8,0.1416]
[1754103643699,0.9113,3532.1,3531.8,0.1416]
[1754103643897,0.4526,3532.1,3531.7,0.4587]
[1754103644104,0.9113,3532.0,3531.7,0.4587]
[1754103644286,0.4587,3531.9,3531.7,0.4587]
[1754103644471,0.9113,3531.9,3531.7,0.4587]
[1754103644671,0.1416,3532.4,3531.8,0.1416]
[1754103645195,0.9113,3532.3,3531.8,0.1416]
[1754103645417,0.9113,3532.2,3531.8,0.1416]
[1754103645625,0.9113,3532.1,3531.8,0.1416]
[1754103645797,0.1416,3532.4,3531.8,0.1416]
[1754103646138,0.9113,3532.0,3531.8,0.1416]
[1754103646311,0.9113,3531.9,3531.1,3.55]
[1754103646493,0.9113,3531.8,3531.6,0.1416]
[1754103646699,0.93977072,3531.7,3531.5,0.1416]
[1754103646897,0.93977072,3531.6,3530.0,2.83279597]
[1754103647211,0.9113,3531.5,3530.3,3.0]
[1754103647423,0.9113,3531.4,3531.1,0.1416]
[1754103647628,0.9113,3531.3,3530.6,0.55]
[1754103647815,0.9113,3531.2,3530.9,0.1416]
[1754103648016,0.9113,3531.1,3530.9,0.1416]
[1754103648221,0.9113,3531.0,3530.9,0.1416]
[1754103648714,0.4587,3531.0,3530.9,0.1416]
[1754103649630,0.1416,3531.4,3530.9,0.1416]
[1754103649631,0.4587,3531.4,3530.9,0.1416]
[1754103649822,0.9113,3531.3,3530.9,0.1416]
[1754103650003,0.9113,3531.3,3530.7,0.55]
[1754103650205,0.9113,3531.3,3531.2,0.1416]
[1754103650538,0.4587,3531.3,3531.2,0.1416]
[1754103650906,0.9113,3531.3,3531.2,0.1416]
[1754103652042,0.9113,3531.3,3530.2,3.4323]
[1754103652043,0.9113,3531.3,3531.0,0.1416]
[1754103652198,0.92,3531.2,3531.0,0.1416]
[1754103652399,0.1416,3531.5,3531.0,0.1416]
[1754103652400,0.92,3531.1,3531.0,0.1416]
[1754103653115,0.92,3531.1,3530.9,0.1416]
[1754103653454,0.92,3531.0,3530.9,0.1416]
[1754103653766,0.4577,3531.0,3530.9,0.1416]
[1754103653967,0.92,3531.0,3530.9,0.1416]
[1754103654990,0.92,3531.0,3530.7,0.1416]
[1754103655195,0.4623,3530.9,3530.7,0.1416]
[1754103655559,0.4623,3530.8,3530.7,0.1416]
[1754103656016,0.92,3530.8,3530.7,0.1416]
[1754103658096,0.92,3530.8,3530.0,0.002]
[1754103658272,0.92,3530.7,3530.4,0.1416]
[1754103658600,0.4623,3530.6,3530.4,0.1416]
[1754103658965,0.4623,3530.5,3530.4,0.1416]
[1754103659167,0.4577,3530.7,3530.4,0.1416]
[1754103659501,0.4623,3530.6,3530.4,0.1416]
[1754103659675,0.4623,3530.5,3530.4,0.1416]
[1754103660862,0.4577,3530.8,3530.4,0.1416]
[1754103661079,0.1416,3530.9,3530.4,0.1416]
[1754103661286,0.4623,3530.9,3530.6,0.1416]
[1754103661486,0.4623,3530.8,3530.6,0.1416]
[1754103661801,0.92,3530.8,3530.6,0.1416]
[1754103662007,0.62777072,3530.7,3530.2,0.4623]
[1754103662300,0.1416,3530.4,3530.2,0.4623]
[1754103662475,0.94847072,3530.3,3530.0,0.002]
[1754103662677,0.1416,3530.2,3530.0,0.002]
[1754103662867,0.001,3531.1,3530.0,0.1436]
[1754103662868,0.4623,3530.5,3530.0,0.1436]
[1754103663068,0.4623,3530.4,3530.2,0.1416]
[1754103663268,0.48617072,3530.3,3530.0,0.002]
[1754103663496,0.1416,3530.2,3530.0,0.002]
[1754103663769,0.02847072,3530.1,3530.0,0.002]
[1754103664076,0.48617072,3530.1,3530.0,0.002]
[1754103664296,0.94847072,3530.1,3530.0,0.002]
[1754103665197,0.92,3530.1,3530.0,0.002]
[1754103666722,0.4623,3530.1,3530.0,0.002]
[1754103667397,0.92,3530.1,3530.0,0.002]
[1754103668928,3.75278094,3530.1,3530.0,0.002]
[1754103669126,4.42833091,3530.1,3530.0,0.002]
[1754103669417,1.59554997,3530.1,3530.0,0.002]
[1754103669724,0.92,3530.1,3530.0,0.002]
[1754103670314,5.301,3530.1,3530.0,0.002]
[1754103670489,8.68378094,3530.1,3530.0,0.002]
[1754103670689,13.38778094,3530.1,3530.0,0.002]
[1754103670995,13.5355941,3530.1,3530.0,0.002]
[1754103671195,5.08710196,3529.7,3529.6,0.002]
[1754103671393,13.36117268,3529.7,3529.6,0.002]
[1754103671635,14.25270196,3529.7,3529.6,0.002]
[1754103674007,44.25270196,3529.7,3529.6,0.002]
[1754103674214,45.13612855,3529.7,3529.6,0.002]
[1754103676704,45.13612855,3529.7,3529.6,1e-08]
[1754103676943,49.83012855,3529.7,3529.6,1e-08]
[1754103677800,49.93012855,3529.7,3529.6,1e-08]
[1754103678130,54.30912855,3529.7,3529.6,1e-08]
[1754103678737,41.07742305,3529.3,3529.2,1e-08]
[1754103679031,45.89352305,3529.3,3529.2,1e-08]
[1754103679245,46.95512305,3529.3,3529.2,1e-08]
[1754103679937,16.95512305,3529.3,3529.2,1e-08]
[1754103680136,46.95512305,3529.3,3529.2,1e-08]
[1754103680936,39.58712305,3529.3,3529.2,1e-08]
[1754103681135,38.71012305,3529.3,3529.2,1e-08]
[1754103681344,38.71212305,3529.3,3529.2,1e-08]
[1754103681905,37.88312305,3529.3,3529.2,1e-08]
[1754103682105,43.41612305,3529.3,3529.2,1e-08]
[1754103682405,43.96612305,3529.3,3529.2,1e-08]
[1754103683175,39.58712305,3529.3,3529.2,1e-08]
[1754103683391,43.96612305,3529.3,3529.2,1e-08]
[1754103683689,50.98412305,3529.3,3529.2,1e-08]
[1754103685000,48.1507,3529.3,3529.2,1e-08]
[1754103685307,9.3017,3529.3,3529.2,1e-08]
[1754103685604,4.9567,3529.3,3529.2,0.88250001]
[1754103685766,0.1416,3529.3,3529.2,0.88250001]
[1754103686101,4.5196,3529.3,3529.2,0.88250001]
[1754103690564,4.5166,3529.3,3529.2,0.88250001]
[1754103691585,4.5156,3529.3,3529.2,0.88250001]
[1754103691785,0.1416,3529.3,3529.2,0.88250001]
[1754103692093,4.373,3529.3,3529.2,0.88250001]
[1754103695703,4.37,3529.3,3529.2,0.88250001]
[1754103697016,0.4618,3531.0,3529.2,0.88250001]
[1754103697175,0.1416,3530.1,3529.3,0.8825]
[1754103697369,4.37,3530.0,3529.6,0.1416]
[1754103697588,0.4618,3529.9,3529.2,1e-08]
[1754103697798,0.1416,3529.3,3529.2,1e-08]
[1754103698045,4.5126,3529.3,3529.2,1e-08]
[1754103698708,4.5136,3529.3,3529.2,0.43000001]
[1754103698872,4.5136,3529.3,3529.2,1e-08]
[1754103699884,4.372,3529.3,3529.2,0.88250001]
[1754103701478,4.371,3529.4,3529.2,0.88250001]
[1754103701677,4.371,3529.4,3529.3,0.8825]
[1754103702397,4.37,3529.4,3529.3,0.8825]
[1754103704102,4.37,3529.4,3529.3,0.43]
[1754103704601,4.37,3529.4,3529.3,0.8825]
[1754103704996,0.1416,3529.7,3529.2,0.14160001]
[1754103705197,4.37,3529.9,3529.5,0.1416]
[1754103705399,4.37,3529.9,3529.7,0.1416]
[1754103705600,0.001,3530.1,3529.8,0.8825]
[1754103705799,0.001,3530.1,3529.8,1.0241]